fUST/lending_fUST_20240917
["ID","MTS","AMOUNT","RATE_DAILY","PERIOD"]
[338350130,1726541438671,-153.0,0.00018441,2]
[338350131,1726541438680,-153.0,0.00018441,2]
[338350132,1726541438691,-153.0,0.00018441,2]
[338350133,1726541438700,-153.0,0.00018441,2]
[338350134,1726541438710,-153.0,0.00018441,2]
[338350135,1726541438720,-306.0,0.00018441,2]
[338350136,1726541438729,-2906.92302014,0.00018529,2]
[338350137,1726541438755,-108055.54352886,0.00018529,2]
[338350138,1726541438765,-468.93895975,0.00018538,2]
[338350139,1726541438775,-500.0,0.00018538,2]
[338350140,1726541438785,-500.0,0.00018538,2]
[338350141,1726541438795,-500.0,0.00018538,2]
[338350142,1726541438804,-500.0,0.00018538,2]
[338350143,1726541438815,-551.53773852,0.00018538,2]
[338350144,1726541438824,-500.0,0.00018538,2]
[338350145,1726541438834,-500.0,0.00018538,2]
[338350146,1726541438844,-500.0,0.00018538,2]
[338350147,1726541438853,-500.0,0.00018538,2]
[338350148,1726541438863,-500.0,0.00018538,2]
[338350149,1726541438875,-587.21665139,0.00018538,2]
[338350150,1726541438884,-500.0,0.00018538,2]
[338350151,1726541438894,-500.0,0.00018538,2]
[338350152,1726541438903,-500.0,0.00018538,2]
[338350153,1726541438913,-500.0,0.00018538,2]
[338350154,1726541438923,-500.0,0.00018538,2]
[338350155,1726541438932,-500.0,0.00018538,2]
[338350156,1726541438942,-327.7265062,0.00018538,2]
[338350157,1726541438951,-500.0,0.00018538,2]
[338350158,1726541438961,-500.0,0.00018538,2]
[338350159,1726541438970,-500.0,0.00018538,2]
[338350160,1726541438979,-500.0,0.00018538,2]
[338350161,1726541438989,-366.37706528,0.00018538,2]
[338350162,1726541438999,-500.0,0.00018538,2]
[338350163,1726541439008,-500.0,0.00018538,2]
[338350164,1726541439018,-120327.780562,0.00018539,2]
[338350165,1726541439028,-36987.4888498,0.00018539,2]
[338350166,1726541439038,-153.0,0.00018541,2]
[338350167,1726541439049,-153.0,0.00018541,2]
[338350168,1726541439068,-153.0,0.00018541,2]
[338350169,1726541439077,-6189.70895631,0.0001859,2]
[338350170,1726541439087,-957.63671788,0.00018687,2]
[338350171,1726541439096,-6189.70895631,0.00018697,2]
[338350172,1726541439107,-1000.0,0.00018719,2]
[338350173,1726541439116,-2417.26795308,0.0001872,2]
[338350174,1726541439125,-73974.9776997,0.00018775,2]
[338350175,1726541439135,-60163.8902812,0.00018785,2]
[338350176,1726541439144,-157.43873844,0.00018785,2]
[338350177,1726541439155,-957.63671784,0.0001879,2]
[338350178,1726541439165,-2429.27935476,0.00018798,2]
[338350179,1726541439175,-3000.0,0.000188,2]
[338350180,1726541439185,-150.112233,0.000188,2]
[338350181,1726541439195,-150.112233,0.000188,2]
[338350182,1726541439204,-3000.0,0.0001881,2]
[338350183,1726541439214,-3000.0,0.0001881,2]
[338350184,1726541439223,-36987.4888498,0.0001881,3]
[338350185,1726541439233,-3000.0,0.0001882,2]
[338350186,1726541439242,-3000.0,0.0001882,2]
[338350187,1726541439253,-3000.0,0.0001883,2]
[338350188,1726541439263,-3000.0,0.0001884,2]
[338350189,1726541439272,-3000.0,0.0001885,2]
[338350190,1726541439283,-36987.4888498,0.00018858,3]
[338350191,1726541439292,-2300.0,0.0001886,2]
[338350192,1726541439301,-3000.0,0.0001886,2]
[338350193,1726541439312,-60163.8902812,0.00018869,2]
[338350194,1726541439321,-3000.0,0.0001887,2]
[338350195,1726541439331,-3000.0,0.0001888,2]
[338350196,1726541439342,-3000.0,0.0001888,2]
[338350197,1726541439352,-3000.0,0.0001889,2]
[338350198,1726541439362,-957.63671784,0.00018894,2]
[338350199,1726541439372,-2865.382063,0.000189,2]
[338350200,1726541439382,-3000.0,0.000189,2]
[338350201,1726541439392,-150.112233,0.000189,2]
[338350202,1726541439402,-150.112233,0.000189,2]
[338350203,1726541439412,-150.112233,0.000189,2]
[338350204,1726541439427,-150.112233,0.000189,2]
[338350205,1726541439436,-3000.0,0.0001891,2]
[338350206,1726541439446,-3000.0,0.0001892,2]
[338350207,1726541439455,-3000.0,0.0001893,2]
[338350208,1726541439465,-1156.9768074,0.0001893,2]
[338350209,1726541439475,-3000.0,0.0001894,2]
[338350210,1726541439485,-3000.0,0.0001895,2]
[338350211,1726541439497,-3000.0,0.0001896,2]
[338350212,1726541439507,-3000.0,0.0001897,2]
[338350213,1726541439517,-306.0,0.00018979,2]
[338350214,1726541439526,-153.0,0.00018979,2]
[338350215,1726541439536,-3000.0,0.0001898,2]
[338350216,1726541439554,-60163.8902812,0.0001898,3]
[338350217,1726541439563,-3000.0,0.0001899,2]
[338350218,1726541439578,-957.63671784,0.00018997,2]
[338350219,1726541439588,-3495.0,0.00019,2]
[338350220,1726541439598,-153.0,0.00019,2]
[338350221,1726541439607,-153.0,0.00019,2]
[338350222,1726541439616,-3000.0,0.00019,2]
[338350223,1726541439626,-150.112233,0.00019,2]
[338350224,1726541439636,-150.112233,0.00019,2]
[338350225,1726541439645,-150.112233,0.00019,2]
[338350226,1726541439655,-150.112233,0.00019,2]
[338350227,1726541439664,-3000.0,0.0001901,2]
[338350228,1726541439674,-3000.0,0.0001902,2]
[338350229,1726541439683,-3000.0,0.0001903,2]
[338350230,1726541439693,-3000.0,0.0001904,2]
[338350231,1726541439703,-151.0,0.0001904,2]
[338350232,1726541439712,-151.0,0.0001904,2]
[338350233,1726541439722,-151.0,0.0001904,2]
[338350234,1726541439732,-583.168894,0.0001904,2]
[338350235,1726541439741,-583.168894,0.0001904,2]
[338350236,1726541439752,-198.83984,0.0001904,2]
[338350237,1726541439763,-198.83984,0.0001904,2]
[338350238,1726541439772,-195.698539,0.0001904,2]
[338350239,1726541439781,-195.698539,0.0001904,2]
[338350240,1726541439791,-3000.0,0.0001905,2]
[338350241,1726541439804,-153.0,0.00019055,2]
[338350242,1726541439813,-3000.0,0.0001906,2]
[338350243,1726541439823,-3000.0,0.0001907,2]
[338350244,1726541439832,-151.0,0.00019076,2]
[338350245,1726541439842,-151.0,0.00019076,2]
[338350246,1726541439851,-151.0,0.00019076,2]
[338350247,1726541439861,-761.202775,0.00019076,2]
[338350248,1726541439870,-761.202775,0.00019076,2]
[338350249,1726541439880,-1019.15219,0.00019076,2]
[338350250,1726541439890,-1019.15219,0.00019076,2]
[338350251,1726541439900,-3226.734071,0.00019076,2]
[338350254,1726541439911,-3226.734071,0.00019076,2]
[338350256,1726541439920,-1896.719732,0.00019076,2]
[338350257,1726541439930,-1896.719732,0.00019076,2]
[338350258,1726541439939,-151.0,0.00019076,2]
[338350259,1726541439950,-151.0,0.00019076,2]
[338350260,1726541439959,-263.36285,0.00019076,2]
[338350261,1726541439969,-263.36285,0.00019076,2]
[338350262,1726541439978,-3000.0,0.0001908,2]
[338350263,1726541439988,-4224.06406101,0.00019085,2]
[338350264,1726541439998,-151.0,0.00019086,2]
[338350265,1726541440008,-151.0,0.00019086,2]
[338350266,1726541440018,-1517.82631,0.00019086,2]
[338350267,1726541440028,-1517.82631,0.00019086,2]
[338350268,1726541440038,-1108.743786,0.00019086,2]
[338350269,1726541440048,-151.0,0.00019086,2]
[338350270,1726541440057,-151.0,0.00019086,2]
[338350271,1726541440067,-1485.090626,0.00019086,2]
[338350272,1726541440077,-1485.090626,0.00019086,2]
[338350273,1726541440086,-151.0,0.00019086,2]
[338350274,1726541440096,-151.0,0.00019086,2]
[338350275,1726541440105,-151.0,0.00019086,2]
[338350276,1726541440114,-151.0,0.00019087,2]
[338350277,1726541440124,-151.0,0.00019087,2]
[338350278,1726541440134,-151.0,0.00019087,2]
[338350279,1726541440145,-583.168894,0.00019087,2]
[338350280,1726541440154,-583.168894,0.00019087,2]
[338350281,1726541440164,-198.83984,0.00019087,2]
[338350282,1726541440173,-198.83984,0.00019087,2]
[338350283,1726541440183,-195.698539,0.00019087,2]
[338350284,1726541440192,-195.698539,0.00019087,2]
[338350285,1726541440202,-3000.0,0.0001909,2]
[338350286,1726541440213,-1000.0,0.00019096,2]
[338350287,1726541440222,-3000.0,0.000191,2]
[338350289,1726541440231,-150.112233,0.000191,2]
[338350291,1726541440241,-150.112233,0.000191,2]
[338350292,1726541440251,-957.63671784,0.000191,2]
[338350294,1726541440260,-150.112233,0.000191,2]
[338350296,1726541440270,-5865.382063,0.0001911,2]
[338350297,1726541440280,-6189.70895632,0.00019131,2]
[338350298,1726541440290,-154.6064327,0.00019132,2]
[338350299,1726541440301,-1171.11305352,0.00019165,5]
[338350300,1726541440310,-151.0,0.00019165,2]
[338350301,1726541440319,-161.722079,0.00019165,2]
[338350302,1726541440329,-151.0,0.00019165,2]
[338350303,1726541440338,-761.202775,0.00019165,2]
[338350304,1726541440347,-761.202775,0.00019165,2]
[338350305,1726541440356,-1019.15219,0.00019165,2]
[338350306,1726541440366,-1019.15219,0.00019165,2]
[338350307,1726541440376,-3226.734071,0.00019165,2]
[338350308,1726541440386,-3226.734071,0.00019165,2]
[338350309,1726541440396,-1896.719732,0.00019165,2]
[338350310,1726541440405,-1896.719732,0.00019165,2]
[338350311,1726541440414,-151.0,0.00019165,2]
[338350312,1726541440424,-201.730771,0.00019165,2]
[338350313,1726541440434,-263.36285,0.00019165,2]
[338350314,1726541440443,-263.36285,0.00019165,2]
[338350315,1726541440453,-151.0,0.00019175,2]
[338350316,1726541440463,-151.0,0.00019175,2]
[338350317,1726541440473,-160.935954,0.00019175,2]
[338350318,1726541440483,-160.935954,0.00019175,2]
[338350319,1726541440493,-1975.041304,0.00019175,2]
[338350320,1726541440503,-151.0,0.00019175,2]
[338350321,1726541440513,-151.0,0.00019175,2]
[338350322,1726541440522,-151.0,0.00019175,2]
[338350323,1726541440532,-1517.82631,0.00019175,2]
[338350324,1726541440541,-151.0,0.00019175,2]
[338350325,1726541440554,-233.234216,0.00019175,2]
[338350326,1726541440564,-151.0,0.00019175,2]
[338350327,1726541440573,-1517.82631,0.00019175,2]
[338350328,1726541440582,-233.234216,0.00019175,2]
[338350329,1726541440592,-1108.743786,0.00019175,2]
[338350330,1726541440601,-151.0,0.00019175,2]
[338350331,1726541440611,-1038.648514,0.00019175,2]
[338350332,1726541440620,-1038.648514,0.00019175,2]
[338350333,1726541440630,-151.0,0.00019175,2]
[338350334,1726541440643,-4000.0,0.00019175,2]
[338350335,1726541440653,-1485.090626,0.00019175,2]
[338350336,1726541440665,-4000.0,0.00019175,2]
[338350337,1726541440868,-4000.0,0.00019175,2]
[338350338,1726541440878,-2072.120592,0.00019175,2]
[338350339,1726541440888,-151.0,0.00019175,2]
[338350340,1726541440898,-1485.090626,0.00019175,2]
[338350341,1726541440907,-151.0,0.00019175,2]
[338350342,1726541440917,-151.0,0.00019175,2]
[338350343,1726541440927,-151.0,0.00019175,2]
[338350344,1726541440936,-151.0,0.00019175,2]
[338350345,1726541440946,-151.0,0.00019175,2]
[338350346,1726541440956,-153.565439,0.00019175,2]
[338350347,1726541440965,-583.168894,0.00019175,2]
[338350348,1726541440975,-583.168894,0.00019175,2]
[338350349,1726541440984,-198.83984,0.00019175,2]
[338350350,1726541440993,-198.83984,0.00019175,2]
[338350351,1726541441003,-195.698539,0.00019175,2]
[338350352,1726541441012,-195.698539,0.00019175,2]
[338350353,1726541441021,-2000.0,0.00019178,2]
[338350354,1726541441030,-2000.0,0.00019178,2]
[338350355,1726541441039,-2000.0,0.00019178,2]
[338350356,1726541441050,-2000.0,0.00019178,2]
[338350357,1726541441059,-2000.0,0.00019178,2]
[338350358,1726541441069,-1462.69999118,0.00019178,2]
[338350359,1726541441079,-3291.333143,0.00019178,2]
[338350360,1726541441088,-167.210742,0.00019178,2]
[338350361,1726541441097,-161.99516,0.00019178,2]
[338350362,1726541441106,-3430.149289,0.00019178,2]
[338350363,1726541441116,-3636.82032489,0.00019185,2]
[338350364,1726541441126,-768.84,0.00019185,2]
[338350365,1726541441136,-8368.47322319,0.00019186,2]
[338350366,1726541441146,-11764.89684957,0.00019187,5]
[338350367,1726541441156,-151.0,0.00019187,2]
[338350368,1726541441165,-151.0,0.00019187,2]
[338350369,1726541441175,-160.935954,0.00019187,2]
[338350370,1726541441184,-160.935954,0.00019187,2]
[338350371,1726541441194,-1975.041304,0.00019187,2]
[338350372,1726541441203,-1975.041304,0.00019187,2]
[338350373,1726541441213,-151.0,0.00019187,2]
[338350374,1726541441222,-151.0,0.00019187,2]
[338350375,1726541441232,-151.0,0.00019187,2]
[338350376,1726541441241,-1517.82631,0.00019187,2]
[338350377,1726541441251,-233.234216,0.00019187,2]
[338350378,1726541441261,-212.653544,0.00019187,2]
[338350379,1726541441270,-1517.82631,0.00019187,2]
[338350380,1726541441280,-1108.743786,0.00019187,2]
[338350381,1726541441290,-233.234216,0.00019187,2]
[338350382,1726541441301,-1108.743786,0.00019187,2]
[338350383,1726541441311,-250.133637,0.00019187,2]
[338350384,1726541441321,-1038.648514,0.00019187,2]
[338350385,1726541441330,-1038.648514,0.00019187,2]
[338350386,1726541441339,-151.0,0.00019187,2]
[338350387,1726541441352,-1485.090626,0.00019187,2]
[338350388,1726541441362,-151.0,0.00019187,2]
[338350389,1726541441371,-1485.090626,0.00019187,2]
[338350390,1726541441381,-158.440192,0.00019187,2]
[338350391,1726541441390,-151.0,0.00019187,2]
[338350392,1726541441400,-151.0,0.00019187,2]
[338350393,1726541441410,-151.0,0.00019187,2]
[338350394,1726541441419,-151.0,0.00019187,2]
[338350395,1726541441429,-761.202775,0.00019187,2]
[338350396,1726541441438,-761.202775,0.00019187,2]
[338350397,1726541441449,-1019.15219,0.00019187,2]
[338350398,1726541441459,-1019.15219,0.00019187,2]
[338350399,1726541441468,-3226.734071,0.00019187,2]
[338350400,1726541441478,-3226.734071,0.00019187,2]
[338350401,1726541441487,-1896.719732,0.00019187,2]
[338350402,1726541441499,-1896.719732,0.00019187,2]
[338350403,1726541441508,-151.0,0.00019187,2]
[338350404,1726541441517,-263.36285,0.00019187,2]
[338350405,1726541441527,-263.36285,0.00019187,2]
[338350406,1726541441535,-151.0,0.0001919,2]
[338350407,1726541441547,-151.0,0.0001919,2]
[338350408,1726541441559,-583.168894,0.0001919,2]
[338350409,1726541441568,-583.168894,0.0001919,2]
[338350410,1726541441578,-198.83984,0.0001919,2]
[338350411,1726541441587,-198.83984,0.0001919,2]
[338350412,1726541441597,-195.698539,0.0001919,2]
[338350413,1726541441606,-195.698539,0.0001919,2]
[338350414,1726541441616,-2243.348462,0.00019195,2]
[338350415,1726541441625,-151.0,0.00019195,2]
[338350416,1726541441634,-377.148392,0.00019195,2]
[338350417,1726541441644,-151.0,0.00019195,2]
[338350418,1726541441653,-377.148392,0.00019195,2]
[338350419,1726541441662,-2020.16,0.00019195,2]
[338350420,1726541441672,-151.0,0.00019195,2]
[338350421,1726541441681,-151.0,0.00019195,2]
[338350422,1726541441691,-151.0,0.00019195,2]
[338350423,1726541441701,-151.0,0.00019195,2]
[338350424,1726541441710,-151.0,0.00019195,2]
[338350425,1726541441720,-151.0,0.00019195,2]
[338350426,1726541441729,-761.202775,0.00019195,2]
[338350427,1726541441739,-761.202775,0.00019195,2]
[338350428,1726541441749,-1019.15219,0.00019195,2]
[338350429,1726541441758,-1019.15219,0.00019195,2]
[338350430,1726541441768,-3226.734071,0.00019195,2]
[338350431,1726541441777,-3226.734071,0.00019195,2]
[338350432,1726541441787,-1896.719732,0.00019195,2]
[338350433,1726541441797,-1896.719732,0.00019195,2]
[338350434,1726541441807,-151.0,0.00019195,2]
[338350435,1726541441816,-263.36285,0.00019195,2]
[338350436,1726541441826,-263.36285,0.00019195,2]
[338350437,1726541441836,-1002.73351535,0.00019196,2]
[338350438,1726541441846,-151.0,0.00019197,2]
[338350439,1726541441856,-377.148392,0.00019197,2]
[338350440,1726541441865,-151.0,0.00019197,2]
[338350441,1726541441875,-377.148392,0.00019197,2]
[338350442,1726541441885,-151.0,0.00019197,2]
[338350443,1726541441895,-246.603779,0.00019197,2]
[338350444,1726541441904,-1551.563709,0.00019197,2]
[338350445,1726541441914,-151.0,0.00019197,2]
[338350446,1726541441923,-151.0,0.00019197,2]
[338350447,1726541441933,-160.0,0.00019199,2]
[338350448,1726541441942,-153.0,0.000192,2]
[338350449,1726541441951,-153.0,0.000192,2]
[338350450,1726541441960,-107555.17836032,0.000192,2]
[338350451,1726541442413,-114633.10404244,0.000192,2]
[338350452,1726541442527,-276224.50759724,0.000192,2]
[338350453,1726541442537,-151.0,0.000192,2]
[338350454,1726541442547,-1108.743786,0.000192,2]
[338350455,1726541442557,-1108.743786,0.000192,2]
[338350456,1726541442566,-151.0,0.000192,2]
[338350457,1726541442576,-1485.090626,0.000192,2]
[338350458,1726541442586,-1485.090626,0.000192,2]
[338350459,1726541442596,-150.112233,0.000192,2]
[338350460,1726541442607,-151.0,0.000192,2]
[338350461,1726541442617,-151.0,0.000192,2]
[338350462,1726541442627,-151.0,0.000192,2]
[338350463,1726541442638,-151.0,0.000192,2]
[338350464,1726541442648,-151.0,0.000192,2]
[338350465,1726541442657,-583.168894,0.000192,2]
[338350466,1726541442668,-583.168894,0.000192,2]
[338350467,1726541442679,-198.83984,0.000192,2]
[338350468,1726541442689,-198.83984,0.000192,2]
[338350469,1726541442699,-195.698539,0.000192,2]
[338350470,1726541442708,-195.698539,0.000192,2]
[338350471,1726541442718,-151.0,0.000192,2]
[338350472,1726541442728,-761.202775,0.000192,2]
[338350473,1726541442737,-761.202775,0.000192,2]
[338350474,1726541442747,-1019.15219,0.000192,2]
[338350475,1726541442758,-1019.15219,0.000192,2]
[338350476,1726541442767,-3226.734071,0.000192,2]
[338350477,1726541442778,-3226.734071,0.000192,2]
[338350478,1726541442787,-1896.719732,0.000192,2]
[338350479,1726541442798,-1896.719732,0.000192,2]
[338350480,1726541442810,-1000.0,0.000192,2]
[338350483,1726541442820,-1000.0,0.000192,2]
[338350486,1726541442829,-1000.0,0.000192,2]
[338350487,1726541442838,-1000.0,0.000192,2]
[338350489,1726541442847,-1000.0,0.000192,2]
[338350491,1726541442857,-1000.0,0.000192,2]
[338350493,1726541442866,-1000.0,0.000192,2]
[338350495,1726541442876,-1000.0,0.000192,2]
[338350497,1726541442885,-1000.0,0.000192,2]
[338350498,1726541442895,-1000.0,0.000192,2]
[338350499,1726541442904,-1000.0,0.000192,2]
[338350500,1726541442914,-1000.0,0.000192,2]
[338350501,1726541442924,-1000.0,0.000192,2]
[338350502,1726541442934,-1000.0,0.000192,2]
[338350504,1726541442943,-1000.0,0.000192,2]
[338350506,1726541442952,-1000.0,0.000192,2]
[338350507,1726541442962,-1000.0,0.000192,2]
[338350508,1726541442972,-1000.0,0.000192,2]
[338350509,1726541442983,-1000.0,0.000192,2]
[338350510,1726541442993,-1000.0,0.000192,2]
[338350511,1726541443002,-1000.0,0.000192,2]
[338350512,1726541443012,-1000.0,0.000192,2]
[338350513,1726541443021,-1000.0,0.000192,2]
[338350514,1726541443031,-1000.0,0.000192,2]
[338350515,1726541443041,-1000.0,0.000192,2]
[338350516,1726541443052,-1000.0,0.000192,2]
[338350517,1726541443061,-1000.0,0.000192,2]
[338350519,1726541443071,-1000.0,0.000192,2]
[338350520,1726541443081,-1000.0,0.000192,2]
[338350521,1726541443091,-1000.0,0.000192,2]
[338350522,1726541443101,-1000.0,0.000192,2]
[338350523,1726541443110,-1000.0,0.000192,2]
[338350524,1726541443120,-1000.0,0.000192,2]
[338350525,1726541443130,-1000.0,0.000192,2]
[338350526,1726541443139,-1000.0,0.000192,2]
[338350527,1726541443149,-1000.0,0.000192,2]
[338350528,1726541443159,-1000.0,0.000192,2]
[338350529,1726541443168,-1000.0,0.000192,2]
[338350530,1726541443178,-1000.0,0.000192,2]
[338350531,1726541443188,-1000.0,0.000192,2]
[338350532,1726541443197,-1000.0,0.000192,2]
[338350533,1726541443207,-1000.0,0.000192,2]
[338350534,1726541443216,-1000.0,0.000192,2]
[338350535,1726541443226,-1000.0,0.000192,2]
[338350536,1726541443235,-151.0,0.000192,2]
[338350537,1726541443246,-1000.0,0.000192,2]
[338350538,1726541443255,-1000.0,0.000192,2]
[338350539,1726541443265,-1042.992596,0.000192,2]
[338350540,1726541443275,-263.36285,0.000192,2]
[338350541,1726541443285,-263.36285,0.000192,2]
[338350542,1726541443295,-3000.0,0.00019211,2]
[338350543,1726541443305,-333.9800617,0.00019212,2]
[338350544,1726541443315,-333.9800617,0.00019212,2]
[338350546,1726541443325,-1333.9800617,0.00019215,2]
[338350547,1726541443334,-1333.9800617,0.00019217,2]
[338350548,1726541443344,-4909.05023871,0.00019219,2]
[338350554,1726541446257,-500.0,0.00018428,2]
[338350555,1726541446267,-500.0,0.00018428,2]
[338350556,1726541446276,-500.0,0.00018428,2]
[338350557,1726541446286,-500.0,0.00018428,2]
[338350558,1726541446295,-500.0,0.00018428,2]
[338350559,1726541446306,-500.0,0.00018428,2]
[338350560,1726541446315,-500.0,0.00018428,2]
[338350561,1726541446324,-500.0,0.00018428,2]
[338350562,1726541446334,-500.0,0.00018428,2]
[338350563,1726541446344,-500.0,0.00018428,2]
[338350564,1726541446353,-500.0,0.00018428,2]
[338350565,1726541446363,-500.0,0.00018428,2]
[338350566,1726541446372,-500.0,0.00018428,2]
[338350567,1726541446382,-500.0,0.00018428,2]
[338350568,1726541446391,-500.0,0.00018428,2]
[338350569,1726541446401,-500.0,0.00018428,2]
[338350570,1726541446411,-500.0,0.00018428,2]
[338350571,1726541446421,-500.0,0.00018428,2]
[338350572,1726541446430,-500.0,0.00018428,2]
[338350573,1726541446439,-500.0,0.00018428,2]
[338350574,1726541446449,-500.0,0.00018428,2]
[338350575,1726541446458,-500.0,0.00018428,2]
[338350576,1726541446467,-500.0,0.00018428,2]
[338350577,1726541446477,-500.0,0.00018428,2]
[338350578,1726541446486,-500.0,0.00018428,2]
[338350579,1726541446496,-500.0,0.00018428,2]
[338350580,1726541446508,-427.30522027,0.00018428,2]
[338350581,1726541446517,-528.53495214,0.00018428,2]
[338350582,1726541446528,-528.53495214,0.00018428,2]
[338350583,1726541446538,-500.0,0.00018428,2]
[338350584,1726541446549,-528.53495214,0.00018428,2]
[338350585,1726541446559,-500.0,0.00018428,2]
[338350586,1726541446568,-528.53495214,0.00018428,2]
[338350587,1726541446577,-500.0,0.00018428,2]
[338350588,1726541446587,-500.0,0.00018428,2]
[338350589,1726541446596,-528.53495214,0.00018428,2]
[338350590,1726541446605,-500.0,0.00018428,2]
[338350591,1726541446616,-528.53495214,0.00018428,2]
[338350592,1726541446625,-528.53495214,0.00018428,2]
[338350593,1726541446634,-500.0,0.00018428,2]
[338350594,1726541446644,-528.53495214,0.00018428,2]
[338350595,1726541446654,-500.0,0.00018428,2]
[338350596,1726541446663,-500.0,0.00018538,2]
[338350597,1726541446673,-500.0,0.00018538,2]
[338350598,1726541446682,-500.0,0.00018538,2]
[338350599,1726541446692,-500.0,0.00018538,2]
[338350600,1726541446702,-500.0,0.00018538,2]
[338350601,1726541446711,-500.0,0.00018538,2]
[338350602,1726541446931,-500.0,0.00018538,2]
[338350603,1726541446944,-500.0,0.00018538,2]
[338350604,1726541446954,-500.0,0.00018538,2]
[338350605,1726541446963,-500.0,0.00018538,2]
[338350606,1726541446973,-90.94976129,0.00019219,2]
[338350607,1726541446982,-5000.0,0.00019238,2]
[338350608,1726541446992,-151.0,0.00019259,2]
[338350609,1726541447002,-151.0,0.00019259,2]
[338350610,1726541447011,-160.935954,0.00019259,2]
[338350611,1726541447021,-160.935954,0.00019259,2]
[338350612,1726541447030,-1975.041304,0.00019259,2]
[338350613,1726541447039,-151.0,0.00019259,2]
[338350614,1726541447049,-151.0,0.00019259,2]
[338350615,1726541447059,-151.0,0.00019259,2]
[338350616,1726541447068,-1517.82631,0.00019259,2]
[338350617,1726541447078,-151.0,0.00019259,2]
[338350618,1726541447087,-233.234216,0.00019259,2]
[338350619,1726541447096,-1517.82631,0.00019259,2]
[338350620,1726541447105,-1108.743786,0.00019259,2]
[338350621,1726541447114,-233.234216,0.00019259,2]
[338350622,1726541447124,-1108.743786,0.00019259,2]
[338350623,1726541447133,-1038.648514,0.00019259,2]
[338350624,1726541447142,-1038.648514,0.00019259,2]
[338350625,1726541447151,-151.0,0.00019259,2]
[338350626,1726541447160,-1485.090626,0.00019259,2]
[338350627,1726541447169,-151.0,0.00019259,2]
[338350628,1726541447179,-1485.090626,0.00019259,2]
[338350629,1726541447188,-151.0,0.00019259,2]
[338350630,1726541447197,-151.0,0.00019259,2]
[338350631,1726541447206,-151.0,0.0001926,2]
[338350632,1726541447216,-151.0,0.0001926,2]
[338350633,1726541447225,-160.935954,0.0001926,2]
[338350634,1726541447234,-160.935954,0.0001926,2]
[338350635,1726541447244,-1975.041304,0.0001926,2]
[338350636,1726541447254,-1975.041304,0.0001926,2]
[338350637,1726541447263,-226.166699,0.0001926,2]
[338350638,1726541447273,-151.0,0.0001926,2]
[338350639,1726541447282,-1517.82631,0.0001926,2]
[338350640,1726541447292,-151.0,0.0001926,2]
[338350641,1726541447302,-233.234216,0.0001926,2]
[338350642,1726541447312,-1517.82631,0.0001926,2]
[338350643,1726541447322,-233.234216,0.0001926,2]
[338350644,1726541447332,-1038.648514,0.0001926,2]
[338350645,1726541447342,-1038.648514,0.0001926,2]
[338350646,1726541447351,-151.737006,0.0001926,2]
[338350647,1726541447360,-151.0,0.0001926,2]
[338350648,1726541447369,-151.0,0.0001926,2]
[338350649,1726541447379,-151.0,0.00019262,2]
[338350650,1726541447388,-377.148392,0.00019262,2]
[338350651,1726541447398,-151.0,0.00019262,2]
[338350652,1726541447407,-377.148392,0.00019262,2]
[338350653,1726541447417,-151.0,0.00019262,2]
[338350654,1726541447426,-151.0,0.00019262,2]